Cogmind - Beta 11.1 @@@ ROGUE MODE // 2022.09.27 @ 02:35:25 Player: lumberblack Result: Smashed by cave-in Performance ------------- Evolutions (1) 500 Regions Visited (4) 800 Robots Destroyed (53) 265 Value Destroyed (907) 907 Prototype IDs (5) 100 Alien Tech Used (0) 0 Bonus (117) 117 TOTAL SCORE: 2689 Bonus ------- High Alert Combat Kills 93 Follower Combat Kills 25 Friendly Fire -1 Cogmind --------- Core Integrity 0/400 Matter 72/300 Energy 99/100 System Corruption 5% Temperature Cool (0) Movement Core (50) Location -9/Mines Parts ------- > --- POWER (1) -------- (None) > --- PROPULSION (2) --- (None) > --- UTILITY (4) ------ Experimental Sensor Array > --- WEAPON (2) ------- (None) > --- INVENTORY (5) ---- Large Storage Unit Huge Storage Unit Missile Launcher Heavy Hammer Signal Generator Peak State ------------ > --- POWER ------------ (None) > --- PROPULSION ------- Light Treads Light Treads > --- UTILITY ---------- Machine Analyzer Experimental Sensor Array Hacking Suite > --- WEAPON ----------- Mini Grenade Launcher Mini Grenade Launcher > --- INVENTORY -------- Large Storage Unit Mini Grenade Launcher Missile Launcher Mining Laser [Rating: 21] Favorites ----------- Power Light Ion Engine Engine Light Ion Engine Propulsion Light Treads Treads Light Treads Leg Aluminum Leg Flight Unit Flight Unit Utility Machine Analyzer Device Seismic Detector Storage Small Storage Unit Processor Machine Analyzer Hackware Hacking Suite Weapon Mini Grenade Launcher Energy Gun Small Laser Ballistic Gun Light Assault Rifle Launcher Mini Grenade Launcher Special Weapon Mining Laser Build | -11 -10 -10 -9 -9 ------- Run | Scr Mat Min Mat Min Slots Evolved 2 | . . . 2 . Power . | . . . . . Propulsion . | . . . . . Utility 2 | . . . 2 . Weapon . | . . . . . Parts Attached 29 | 5 14 4 6 . Power . | . . . . . Engine . | . . . . . Core . | . . . . . Reactor . | . . . . . Propulsion 5 | 2 2 . 1 . Treads 4 | 2 2 . . . Leg . | . . . . . Wheel . | . . . . . Hover . | . . . . . Flight 1 | . . . 1 . Utility 11 | 2 3 2 4 . Device 8 | 2 1 1 4 . Storage . | . . . . . Processor 2 | . 2 . . . Hackware 1 | . . 1 . . Protection . | . . . . . Artifact . | . . . . . Weapon 13 | 1 9 2 1 . Energy Gun 3 | 1 2 . . . Energy Cannon . | . . . . . Ballistic Gun 3 | . 3 . . . Ballistic Cannon . | . . . . . Launcher 5 | . 3 1 1 . Special Weapon 2 | . 1 1 . . Impact Weapon . | . . . . . Slashing Weapon . | . . . . . Piercing Weapon . | . . . . . Special Melee Weapon . | . . . . . Unidentified Prototypes 1 | . . 1 . . Parts Lost 6 | . . . 1 5 Power . | . . . . . Propulsion 2 | . . . 1 1 Utility 2 | . . . . 2 Weapon 2 | . . . . 2 Highest Loss Streak 3 | . . . 1 3 To Critical Strikes 1 | . . . 1 . Average Slot Usage (%) 77 | . 83 79 76 55 Treads 23 | . 27 28 20 6 Device 11 | . 13 7 11 11 Processor 12 | . 13 14 11 8 Hackware 3 | . . 1 11 10 Energy Gun 7 | . 17 . . . Ballistic Gun 3 | . 7 . . . Launcher 13 | . 1 24 22 17 Special Weapon 1 | . 1 3 . . Naked Turns . | . . . . . Heaviest Build 3 | 3 3 3 3 3 Greatest Support 40 | 40 3 3 4 3 Greatest Overweight (x) . | . . . . . Average Overweight (x) . | . . . . . Largest Inventory Capacity 8 | 8 5 5 5 5 Average Capacity 5 | 5 5 5 5 5 Most Carried 6 | 6 5 5 5 5 Average Carried 4 | 2 3 4 4 4 Final Capacity 5 | 5 5 5 5 5 Final Carried 5 | 3 5 5 5 5 Class Distribution -------------------- 100% | Mutant Dominant Class ---------------- Mutant | -10/Materials Mutant | -10/Mines Mutant | -9/Materials Mutant | -9/Mines Resources | -11 -10 -10 -9 -9 ----------- Run | Scr Mat Min Mat Min Matter Collected 686 | 250 177 115 126 18 Remotely 10 | 10 . . . . Salvage Created 1113 | 195 445 195 174 104 Parts 93 | 22 20 21 22 8 Haulers Intercepted 1 | . . . 1 . Recyclers Shooed 1 | . . 1 . . Parts Field Recycled . | . . . . . Retrieved Matter . | . . . . . Parts Self-Destructed . | . . . . . Prevented . | . . . . . Kills | -11 -10 -10 -9 -9 ------- Run | Scr Mat Min Mat Min Combat Hostiles Destroyed 37 | . 8 9 13 7 Melee 1 | . . . . 1 Guns 8 | . 8 . . . AOE 28 | . . 9 13 6 Classes Destroyed 13 | 3 3 2 3 2 Worker 1 | 1 . . . . Builder 2 | . . 1 1 . Tunneler 8 | 7 . 1 . . Hauler 1 | . . . 1 . Recycler 4 | 1 2 1 . . Mechanic 1 | . 1 . . . Watcher 1 | . . . 1 . Swarmer 21 | . 3 3 12 3 Grunt 11 | . 5 4 . 2 Brawler 1 | . . . . 1 Duelist 1 | . . . . 1 Sentry 1 | . . . 1 . Assembled 2 | . . 2 . . Best Kill Streak 6 | 2 5 6 6 3 Combat Bots Only 6 | . 5 5 6 3 Max Kills in Single Turn 4 | 1 1 3 4 3 Gunslinging . | . . . . . Exploded 4 | . . 3 4 3 Melee 1 | . . . . 1 Uniques/NPCs Destroyed . | . . . . . Combat | -11 -10 -10 -9 -9 -------- Run | Scr Mat Min Mat Min Damage Taken 1323 | . 358 188 177 600 Core 561 | . 86 58 38 379 Absorbed by Shields . | . . . . . Regen/Repaired (Parts) 93 | . 93 . . . Core Remaining (%) 71 | 100 . 42 . . Volleys Fired 110 | 23 47 18 13 9 Largest 2 | 2 2 2 2 2 Hottest 100 | 80 100 100 60 60 Shots Fired 189 | 46 87 21 22 13 Gun 126 | 46 80 . . . Cannon . | . . . . . Launcher 48 | . 2 11 22 13 Special 15 | . 5 10 . . Kinetic 25 | . 25 . . . Thermal 116 | 46 60 10 . . Explosive 48 | . 2 11 22 13 Electromagnetic . | . . . . . Robot Hit Streak 15 | 9 15 6 . 1 Robot Miss Streak 6 | 2 6 . . 3 Penetration Max . | . . . . . Secondary Targets . | . . . . . Shots Hit Robots 90 | 31 52 5 . 2 Core Hits 82 | 10 21 17 23 11 Critical Kills . | . . . . . Critical Parts Destroyed 1 | . 1 . . . Critical Strikes 1 | . 1 . . . Destroy 1 | . 1 . . . Melee Attacks . | . . . . . Impact . | . . . . . Slashing . | . . . . . Piercing . | . . . . . Sneak Attacks . | . . . . . Combat Hostiles . | . . . . . Follow-up Attacks . | . . . . . Damage Inflicted 3136 | 329 575 672 770 790 Guns 904 | 329 575 . . . Cannons . | . . . . . Explosions 2183 | . . 666 770 747 Melee . | . . . . . Ramming 49 | . . 6 . 43 Kinetic 98 | . 98 . . . Thermal 806 | 329 477 . . . Explosive 2113 | . . 666 700 747 Electromagnetic 70 | . . . 70 . Impact . | . . . . . Slashing . | . . . . . Piercing . | . . . . . Highest Corruption 4 | . . . 1 4 Average Corruption 1 | . . . 1 1 Corruption Purged . | . . . . . Corruption Blocked . | . . . . . Effects 4 | . . . 1 3 Message Errors 2 | . . . . 2 Matter Fused 1 | . . . 1 . Energy Discharges 1 | . . . . 1 Overload Shots . | . . . . . Overflow Damage 115 | . . 39 46 30 Projectiles . | . . . . . Explosions 115 | . . 39 46 30 Melee . | . . . . . Knockbacks . | . . . . . Impact . | . . . . . Kinetic . | . . . . . Secondary . | . . . . . Self-Inflicted Damage 336 | . . 69 80 187 Shots 12 | . . 2 4 6 Rammed 21 | . 2 8 . 11 Targets Rammed 22 | . 3 8 . 11 Kicked . | . . . . . Crushed 1 | . 1 . . . Highest Temperature 89 | 12 89 2 . 2 Average Temperature 17 | 5 27 2 . 2 Received Heat Transfer 234 | . 132 18 . 84 Siege Activations . | . . . . . Robots Corrupted . | . . . . . Combat Hostiles . | . . . . . Parts Fried . | . . . . . Impact Corruptions . | . . . . . Robots Melted . | . . . . . Combat Hostiles . | . . . . . Parts Melted 1 | . 1 . . . Heat Transferred 1775 | 750 1025 . . . Parts Sabotaged . | . . . . . Parts Stolen . | . . . . . Parts Stripped . | . . . . . Power Chain Reactions . | . . . . . Missiles Intercepted . | . . . . . Alert | -11 -10 -10 -9 -9 ------- Run | Scr Mat Min Mat Min Peak Influence 855 | 45 238 479 855 704 Initial 333 | . 29 92 139 333 Average 223 | 25 88 243 451 552 Maximum Alert Level 3 | . 1 2 3 3 Low Security (%) 55 | 100 93 27 7 . Level 1 20 | . 6 50 39 . Level 2 19 | . . 22 35 81 Level 3 4 | . . . 17 18 Level 4 . | . . . . . Level 5 . | . . . . . High Security . | . . . . . Max Security . | . . . . . Squads Dispatched 6 | . 3 . 2 1 Investigation 3 | . 1 . 2 . Extermination . | . . . . . Reinforcement 2 | . 2 . . . Assault 1 | . . . . 1 Garrison . | . . . . . Intercept . | . . . . . Searches Triggered . | . . . . . Construction Impeded . | . . . . . Haulers Reinforced . | . . . . . Active Scanning Responses . | . . . . . Cargo Convoy Interrupts . | . . . . . Stealth | -11 -10 -10 -9 -9 --------- Run | Scr Mat Min Mat Min Distress Signals 4 | . 1 1 2 . Communications Jammed . | . . . . . Distress Signals . | . . . . . Times Spotted 56 | . 23 10 18 5 Peak Tracking Total 6 | . 5 3 6 5 Tactical Retreats 6 | . 2 1 2 1 Traps | -11 -10 -10 -9 -9 ------- Run | Scr Mat Min Mat Min Traps Triggered . | . . . . . Indirectly . | . . . . . Trap Hack Attempts . | . . . . . Triggered . | . . . . . Disarmed . | . . . . . Reprogrammed . | . . . . . Reused . | . . . . . Traps Extracted . | . . . . . Installed . | . . . . . Triggered . | . . . . . Machines | -11 -10 -10 -9 -9 ---------- Run | Scr Mat Min Mat Min Machines Disabled 6 | . 1 1 4 . Max in Single Turn 1 | . 1 1 1 . Machines Sabotaged . | . . . . . Garrisons Compromised . | . . . . . Overloaded Fab Kills . | . . . . . Hacking | -11 -10 -10 -9 -9 --------- Run | Scr Mat Min Mat Min Machines Accessed 16 | . 7 1 8 . Terminals 10 | . 5 . 5 . Fabricators . | . . . . . Repair Stations 1 | . 1 . . . Recycling Units 2 | . 1 . 1 . Scanalyzers 2 | . . . 2 . Garrison Access . | . . . . . Total Hacks 56 | . 31 1 24 . Successful 38 | . 22 1 15 . Failed 17 | . 9 . 8 . Catastrophic 1 | . 1 . . . Database Lockouts 1 | . . . 1 . Manual 29 | . 17 . 12 . Terminals 41 | . 25 . 16 . Fabricators . | . . . . . Repair Stations 3 | . 3 . . . Recycling Units 4 | . 3 . 1 . Scanalyzers 7 | . . . 7 . Garrison Access . | . . . . . Terminal Hacks 19 | . 12 1 6 . Robot Analysis 4 | . 3 . 1 . Prototype ID Bank 3 | . 3 . . . Open Door 1 | . . 1 . . Branch Access Points 1 | . . . 1 . Terminal Index 2 | . 1 . 1 . Unreport Threat 3 | . 2 . 1 . Locate Traps 4 | . 3 . 1 . Hauler Manifests 1 | . . . 1 . Fabricator Hacks . | . . . . . Repair Station Hacks 3 | . 3 . . . Scan Component 2 | . 2 . . . Repair 1 | . 1 . . . Recycling Unit Hacks . | . . . . . Scanalyzer 4 | . . . 4 . Insert Component 1 | . . . 1 . Analyze 3 | . . . 3 . Garrison Access Hacks . | . . . . . Unauthorized Hacks 11 | . 6 . 5 . Terminals 8 | . 4 . 4 . Track 3 | . 2 . 1 . Assimilate 1 | . . . 1 . Botnet 1 | . . . 1 . Disrupt 1 | . 1 . . . Operators 2 | . 1 . 1 . Fabricators . | . . . . . Repair Stations . | . . . . . Recycling Units 3 | . 2 . 1 . Recyclers 1 | . 1 . . . Tunnel 2 | . 1 . 1 . Scanalyzers . | . . . . . Garrison Access . | . . . . . Data Cores Recovered . | . . . . . Used . | . . . . . Hacking Detections 14 | . 7 . 7 . Full Trace Events 2 | . . . 2 . Feedback Events 1 | . . . 1 . Corruption 1 | . . . 1 . Feedback Blocked . | . . . . . Robot Schematics Acquired . | . . . . . Robots Built . | . . . . . Authchips . | . . . . . Time . | . . . . . Total Robot Build Rating . | . . . . . Part Schematics Acquired 1 | . . . 1 . Parts Built . | . . . . . Authchips . | . . . . . Time . | . . . . . Total Part Build Rating . | . . . . . Parts Repaired 1 | . 1 . . . Time 26 | . 26 . . . Parts Recycled . | . . . . . Recycled Matter . | . . . . . Retrieved Matter . | . . . . . Retrieved Components . | . . . . . Parts Scanalyzed 1 | . . . 1 . Part Schematics Acquired 1 | . . . 1 . Parts Damaged . | . . . . . Bothacking | -11 -10 -10 -9 -9 ------------ Run | Scr Mat Min Mat Min Used RIF Installer . | . . . . . Robots Hacked . | . . . . . Non-combat . | . . . . . Combat . | . . . . . Robot Hacks Applied . | . . . . . Relay Couplers Released . | . . . . . Fabnet Peak Effective % . | . . . . . Robots Rewired . | . . . . . Allies Hacked . | . . . . . Hacks Repelled . | . . . . . Allies | -11 -10 -10 -9 -9 -------- Run | Scr Mat Min Mat Min Total Allies 2 | . . . 1 1 Largest Group 2 | . . . 1 2 Highest-Rated Group 41 | . . . 10 41 Highest-Rated Ally 31 | . . . 10 31 Total Orders . | . . . . . Ally Attacks 9 | . . . . 9 Total Damage 141 | . . . . 141 Kills 2 | . . . . 2 Allies Corrupted . | . . . . . Allies Melted . | . . . . . Intel | -11 -10 -10 -9 -9 ------- Run | Scr Mat Min Mat Min Robot Analysis Total 4 | . 3 . 1 . Derelict Logs Recovered 2 | . . 1 . 1 Drone Launches . | . . . . . Drone Recoveries . | . . . . . Exploration | -11 -10 -10 -9 -9 ------------- Run | Scr Mat Min Mat Min Turns Passed 1874 | 274 672 412 330 186 Spaces Moved 2260 | 83 786 574 525 292 Core 2180 | 13 786 574 515 292 Treads 70 | 70 . . . . Legs . | . . . . . Wheels . | . . . . . Hover . | . . . . . Flight 10 | . . . 10 . Fastest Speed 50 | 50 50 50 50 50 Average Speed 53 | 142 50 50 50 50 Slowest Speed 160 | 160 50 50 60 50 Overloaded Moves . | . . . . . Propulsion Burnouts . | . . . . . Robots Hopped . | . . . . . Cave-ins Triggered 2 | . . . . 2 Exploration Rate (%) 57 | 6 93 94 53 43 Regions Visited 4 Branch Regions 2 Pre-discovered Areas 3 | . 1 . 1 1 Known Exits Taken 1 | . . . 1 . Unknown Exits Taken 3 | 1 1 1 . . Scrap Searched . | . . . . . Spaces Dug 166 | . 13 44 74 35 Terrain Destroyed 413 | . 28 116 151 118 Melee . | . . . . . Projectile 6 | . 5 1 . . AOE 407 | . 23 115 151 118 Terrain Rammed . | . . . . . Walls Destroyed . | . . . . . Machines Disabled . | . . . . . Actions | -11 -10 -10 -9 -9 --------- Run | Scr Mat Min Mat Min Total 2706 | 194 971 653 571 317 Wait 237 | 73 99 45 16 4 Move 2254 | 82 785 573 524 290 Hop . | . . . . . Pick Up 18 | 2 10 1 4 1 Fast Attach 11 | 2 5 2 2 . Attach 6 | 2 1 . 3 . Detach 5 | 1 1 1 2 . Swap 12 | 1 8 2 1 . Drop 30 | 8 12 3 6 1 Fire 110 | 23 47 18 13 9 Melee . | . . . . . Ram 12 | . . 1 . 11 Kick . | . . . . . Crush 10 | . 3 7 . . Escape Stasis 1 | . . . . 1 Rewire . | . . . . . Trap . | . . . . . Miscellaneous . | . . . . . Route ------- -11/Scrapyard -10/Materials (discovered 4 exits: *Mat x3 / *Min) -10/Mines (discovered 2 exits: *Mat x2) -9/Materials (discovered 3 exits: [*Mat] / *Min x2) -9/Mines (discovered 1 exit: [*Exi]) History --------- Turn | Location | Event 9 | -11/Scrapyard | Discovered new exit (range 2) 275 | -11/Scrapyard | Entered Materials 333 | -10/Materials | Build established: Mutant 444 | -10/Materials | Discovered new exit (range 16) 588 | -10/Materials | Repaired Lgt. Treads 615 | -10/Materials | Discovered new exit (range 14) 657 | -10/Materials | Discovered new exit (range 6) 697 | -10/Materials | Discovered new exit (range 15) 947 | -10/Materials | Entered Mines 980 | -10/Mines | Met a Derelict bent on vengeance 992 | -10/Mines | Discovered new exit (range 13) 1131 | -10/Mines | Found a damaged Exp. Sensor Array with a note attached 1133 | -10/Mines | Found Prototype Device 1133 | -10/Mines | Identified Exp. Sensor Array 1138 | -10/Mines | Discovered new exit (range 10) 1167 | -10/Mines | Excavation squad dispatched 1167 | -10/Mines | A large section of the Mines collapsed 1243 | -10/Mines | Core integrity fell below 50% 1307 | -10/Mines | Met a Derelict who couldn't figure out how to use a Trap Extractor 1359 | -10/Mines | Entered Materials 1359 | -9/Materials | Evolved 2 slots: Utility x2 1457 | -9/Materials | Identified exit to Mines 1606 | -9/Materials | Discovered new exit (range 4) 1666 | -9/Materials | Central database locked down 1689 | -9/Materials | Entered Mines 1689 | -9/Mines | Accompanied by 1 ally 1693 | -9/Mines | Met a Derelict testing a Signal Generator 1699 | -9/Mines | Found Signal Generator 1774 | -9/Mines | Deemed a non-threat by the Exiles lab entrance 1774 | -9/Mines | Discovered new exit (range 5) 1831 | -9/Mines | Core integrity fell below 50% 1854 | -9/Mines | Core integrity fell below 20% 1863 | -9/Mines | Lost 3 parts (1n1u1w) 1866 | -9/Mines | Crushed by falling debris 1875 | -9/Mines | Crushed by falling debris 1875 | -9/Mines | Smashed by cave-in Last Messages --------------- 01838_ The unstable cave ceiling collapses. 01838_ Slammed into G-34 Mercenary. 01838_ Destabilizing: System corrupted (+1). 01838_ U-05 Engineer builds a Wall. 01840_ U-05 Engineer lays Concrete. 01856_ The unstable cave ceiling collapses. 01862_ U-05 Engineer lays Concrete. 01866_ The unstable cave ceiling collapses. 01866_ Crushed by falling debris. 01866_ Hacking Suite destroyed. 01866_ System corrupted by crushing effect (+1). 01867_ Technician 2a reports 0b10 security level has lowered to 2. 01869_ The unstable cave ceiling collapses. 01869_ U-05 Engineer lays Concrete. 01871_ U-05 Engineer builds a Wall. 01873_ U-05 Engineer lays Concrete. 01875_ The unstable cave ceiling collapses. 01875_ Crushed by falling debris. 01875_ Broken Mni. Grenade Launcher destroyed. 01875_ System corrupted by crushing effect (+1). Map ----- +----------------------------------------------------+ | ???????????????????????????? ?????????????? | | ??????????????????????????? ??????????? | | ???????????????????????????# ???????? | | ??????????????????????????????# ###### | | ????????????????????????????????# | | ????????????????????????????????## | | ?????????????????????????????????## ### | | ????????????????????? ????????????# ??? | | ??????????????#???? ?????????# #??# | | ?????????????? ?? ???????# #???# | | ?????????????? ?? #??????## ????# | | ??????????????# ### ????????# ?????# | | ??????????????# ?????????# ?????? | | ??????????????# # #????????? ??????? | | ??????????????# ### ##????????? ??????? | | ?????????????## *%= #???????? ???????? | | ???????????### # #????????#???????? | | ???????????? [# ##??????????#####? | | ?????????????? # #?????????## ## | | ??????????????? ####??????????# # | | ???????????????## ?# #?????????## # | | ???#????######## u# #??????????# | | ???#<##?# ## ###g ##?????????# """ | | ???# ## # ## #?????????# """ | | ?????# ## # # #?????????# """ | | ?????### # ^ ##@## # ####??????## | | ???????### # ^# #???????# ### | | ?????????# # # # ###!##?????## #?### | | ?????????# # ^ ^ ## ## ##???## ##??? | | ?????????# ## ### ## #???# #??? | | ???####### ^ #?###### ##???# #??? | | ???# ## #??????# #???# #??? | | ???# ########### #??????## ##???## ##?? | | ???# #?????????# #???????## ##?????## #?? | | ??## ########??# #????????# #######?# #?? | | ??# #??# #????????# ### #?? | | ??# #??# #######??# ##### ## #?? | | ??# #??# ##?# #???# #?? | | ??# #??# ### #???##### ##?? | | ??# """ """ #??# ### ## #???????####??? | | ??# """ """ #??# #?# ##????????????? | | ??# """ """ #### #?# #????????????? | | ??# """ """ #?## #????????????? | | ??# ######??## ##????????????? | | ??###########????????########?????????????? | | ??????????????????????????????????????????? | | | | | | | | | +----------------------------------------------------+ Best States ------------- Heat Dissipation 28 Energy Generation 5 Energy Capacity 100 Matter Stores 300 Matter Capacity 300 Sight Range 16 Robot Scan Range 20 Terrain Scan Density 10 Evasion (%) 58 Targeting Accuracy 5 Recoil Reduction 2 Offensive Hacking 10 Item Schematics ----------------- Exp. Sensor Array | -9/Materials | Scanalyzed Robot Schematics ------------------ None Fabricated ------------ Nothing Alien Tech Used ----------------- None Achievements -------------- None Challenges ------------ None Game ------ Seed PowerModifiedInterrupter Manual? 0 Play Time 00:31:33 Cumulative 399.8 hours Start 2022.09.26 @ 15:11:31 End 2022.09.27 @ 02:35:25 Sessions 3 Manual Loads 0 Difficulty Rogue Special Mode None Game No. 425 Rogue 425 Adventurer 0 Explorer 0 Win Type - Total 8 Types 5/1/2/0/0/0/0/0/0 Lore% 58 Gallery% 78 Achievement% 65 Wizard Run 0 Options --------- ASCII 0 Keyboard 0 Movement Numpad Keybinds 0 Fullscreen 2 Font 18/TerminusBold Map View 76x50 Tactical HUD 1 Map Filters NONE Filters NONE Steam 1 RUN: 1f31b253-313b-4902-ae5d-b57fafefe705